Cogmind - Beta 13 @@@ ROGUE MODE // 2024.07.04 @ 18:44:17 Player: maykstuff Result: Destroyed by Y-45 Defender with Heavy Assault Rifle Performance ------------- Evolutions (1) 500 Regions Visited (2) 400 Robots Destroyed (52) 260 Value Destroyed (1470) 1470 Prototype IDs (9) 180 Alien Tech Used (0) 0 Bonus (141) 141 TOTAL SCORE: 2951 Bonus ------- High Alert Combat Kills 141 Cogmind --------- Core Integrity 0/400 Matter 289/300 Energy 64/250 System Corruption 10% Temperature Cool (9) Movement Flying (37) Location -9/Materials Parts ------- > --- POWER (1) -------- Ion Engine > --- PROPULSION (2) --- Improved Flight Unit Improved Flight Unit > --- UTILITY (4) ------ Improved Signal Interpreter Transport Network Coupler Targeting Computer Advanced Targeting Computer > --- WEAPON (2) ------- (None) > --- INVENTORY (5) ---- Light Treads Light Treads Assault Rifle Grenade Launcher Datajack Peak State ------------ > --- POWER ------------ Ion Engine > --- PROPULSION ------- Improved Flight Unit Improved Flight Unit > --- UTILITY ---------- Improved Signal Interpreter Transport Network Coupler Targeting Computer Advanced Targeting Computer > --- WEAPON ----------- Assault Rifle EMP Blaster > --- INVENTORY -------- Light Treads Light Treads Flight Unit Grenade Launcher Datajack [Rating: 18] Favorites ----------- Power Light Nuclear Core Engine Light Ion Engine Power Core Light Nuclear Core Propulsion Compact Wheel Wheel Compact Wheel Flight Unit Improved Flight Unit Utility Small Storage Unit Device Sensor Array Storage Small Storage Unit Processor Targeting Computer Weapon Grenade Launcher Energy Gun Small Laser Ballistic Gun Autogun Launcher Grenade Launcher Special Melee Weapon Datajack Build | -11 -10 -9 ------- Run | Yrd Mat Mat Slots Evolved 2 | . . 2 Power . | . . . Propulsion . | . . . Utility 2 | . . 2 Weapon . | . . . Parts Attached 44 | 7 9 28 Power 7 | 1 1 5 Engine 5 | 1 . 4 Core 2 | . 1 1 Reactor . | . . . Propulsion 11 | 2 4 5 Treads . | . . . Leg . | . . . Wheel 9 | 2 4 3 Hover . | . . . Flight 2 | . . 2 Utility 8 | 2 1 5 Device 2 | 1 . 1 Storage 2 | 1 . 1 Processor 4 | . 1 3 Hackware . | . . . Protection . | . . . Artifact . | . . . Weapon 18 | 2 3 13 Energy Gun 4 | 1 1 2 Energy Cannon . | . . . Ballistic Gun 3 | 1 . 2 Ballistic Cannon . | . . . Launcher 7 | . 1 6 Special Weapon . | . . . Impact Weapon . | . . . Slashing Weapon . | . . . Piercing Weapon . | . . . Special Melee Weapon 4 | . 1 3 Unidentified Prototypes . | . . . Corrupted Parts 1 | . . 1 System Corruption 8 | . . 8 Parts Lost 15 | . 2 13 Power 2 | . . 2 Propulsion 5 | . . 5 Utility 1 | . . 1 Weapon 7 | . 2 5 Highest Loss Streak 6 | . 1 6 To Critical Strikes . | . . . Average Slot Usage (%) 88 | . 99 77 Engine 4 | . . 8 Core 7 | . 13 1 Wheel 19 | . 28 11 Flight 2 | . . 4 Device 5 | . 4 5 Storage 11 | . 14 9 Processor 14 | . 9 18 Energy Gun 6 | . 9 2 Ballistic Gun 7 | . 7 7 Launcher 5 | . 7 4 Special Melee Weapon 2 | . 3 2 Naked Turns . | . . . Heaviest Build 15 | 12 15 15 Greatest Support 32 | 26 32 32 Greatest Overweight (x) 4 | . . 4 Average Overweight (x) . | . . . Largest Inventory Capacity 8 | 8 8 8 Average Capacity 7 | 7 8 7 Most Carried 8 | 4 8 8 Average Carried 6 | 3 7 6 Final Capacity 8 | 8 8 5 Final Carried 8 | 4 8 5 Class Distribution -------------------- 100% | Mutant Dominant Class ---------------- Mutant | -10/Materials Mutant | -9/Materials Resources | -11 -10 -9 ----------- Run | Yrd Mat Mat Matter Collected 1129 | 274 212 643 Remotely 149 | 69 80 . Salvage Created 1579 | 74 418 1087 Parts 101 | 2 35 64 Haulers Intercepted 3 | . 1 2 Recyclers Shooed . | . . . Parts Field Recycled . | . . . Retrieved Matter . | . . . Parts Self-Destructed . | . . . Prevented . | . . . Kills | -11 -10 -9 ------- Run | Yrd Mat Mat Combat Hostiles Destroyed 35 | . 8 27 Guns 8 | . 1 7 AOE 27 | . 7 20 Classes Destroyed 10 | 1 5 4 Worker 2 | . 2 . Builder 1 | . . 1 Tunneler 1 | . 1 . Hauler 3 | . 1 2 Recycler 4 | 1 1 2 Operator 1 | . . 1 Watcher 5 | . 3 2 Swarmer 5 | . . 5 Grunt 25 | . 8 17 Sentry 5 | . . 5 Best Kill Streak 7 | 1 4 7 Combat Bots Only 6 | . 3 6 Max Kills in Single Turn 4 | 1 2 4 Gunslinging . | . . . Exploded 3 | . 2 3 Melee . | . . . Uniques/NPCs Destroyed . | . . . Combat | -11 -10 -9 -------- Run | Yrd Mat Mat Hostile Shots Fired 165 | . 24 141 Missed 66 | . 7 59 Damage Taken 1433 | . 374 1059 Core 480 | . 80 400 Absorbed by Shields . | . . . Core Remaining (%) 84 | 100 68 . Volleys Fired 94 | 4 31 59 Largest 2 | 1 2 2 Hottest 63 | 20 60 63 Shots Fired 145 | 4 50 91 Gun 99 | 4 36 59 Cannon . | . . . Launcher 46 | . 14 32 Special . | . . . Kinetic 68 | 4 25 39 Thermal 21 | . 1 20 Explosive 31 | . 14 17 Electromagnetic 25 | . 10 15 Robot Hit Streak 13 | 4 7 13 Robot Miss Streak 4 | . 3 4 Penetration Max . | . . . Secondary Targets . | . . . Shots Hit Robots 99 | 4 32 63 Core Hits 86 | 2 31 53 Critical Kills . | . . . Critical Parts Destroyed 1 | . . 1 Critical Strikes 1 | . . 1 Destroy 1 | . . 1 Melee Attacks 7 | . . 7 Impact . | . . . Slashing . | . . . Piercing . | . . . Sneak Attacks 3 | . . 3 Combat Hostiles . | . . . Follow-up Attacks . | . . . Damage Inflicted 3554 | 37 1097 2420 Guns 743 | 37 227 479 Cannons . | . . . Explosions 2811 | . 870 1941 Melee . | . . . Ramming . | . . . Kinetic 480 | 37 107 336 Thermal 155 | . 12 143 Explosive 2316 | . 870 1446 Electromagnetic 603 | . 108 495 Impact . | . . . Slashing . | . . . Piercing . | . . . Highest Corruption 10 | . 1 10 Average Corruption 7 | . 1 8 Corruption Purged . | . . . Corruption Blocked . | . . . Effects 10 | . . 10 Message Errors 3 | . . 3 Matter Fused 2 | . . 2 Energy Discharges 1 | . . 1 Parts Rejected 1 | . . 1 Parts Fused 1 | . . 1 Data Loss (minor) 1 | . . 1 Alerts 1 | . . 1 Overload Shots . | . . . Overflow Damage 119 | . 94 25 Projectiles . | . . . Explosions 119 | . 94 25 Melee . | . . . Knockbacks . | . . . Impact . | . . . Kinetic . | . . . Secondary . | . . . Self-Inflicted Damage 217 | . 110 107 Shots 7 | . 2 5 Rammed . | . . . Targets Rammed . | . . . Kicked . | . . . Crushed . | . . . Highest Temperature 69 | . 69 59 Average Temperature 18 | . 19 18 Received Heat Transfer 561 | . 129 432 Siege Activations . | . . . Robots Corrupted . | . . . Combat Hostiles . | . . . Parts Fried 5 | . . 5 Impact Corruptions . | . . . Robots Melted . | . . . Combat Hostiles . | . . . Parts Melted . | . . . Heat Transferred 350 | . 25 325 Parts Sabotaged . | . . . Parts Stolen . | . . . Parts Stripped . | . . . Power Chain Reactions 1 | . . 1 Alert | -11 -10 -9 ------- Run | Yrd Mat Mat Peak Influence 957 | 5 376 957 Initial 104 | . 3 104 Average 259 | 2 182 361 Maximum Alert Level 3 | . 1 3 Low Security (%) 43 | 100 46 34 Level 1 41 | . 53 33 Level 2 10 | . . 21 Level 3 5 | . . 10 Level 4 . | . . . Level 5 . | . . . High Security . | . . . Max Security . | . . . Squads Dispatched 8 | . 1 7 Investigation 3 | . . 3 Extermination . | . . . Reinforcement 5 | . 1 4 Assault . | . . . Garrison . | . . . Intercept . | . . . Searches Triggered . | . . . Construction Impeded . | . . . Haulers Reinforced . | . . . Active Scanning Responses . | . . . Cargo Convoy Interrupts . | . . . Stealth | -11 -10 -9 --------- Run | Yrd Mat Mat Distress Signals 5 | . . 5 Communications Jammed . | . . . Distress Signals . | . . . Times Spotted 56 | . 15 41 Peak Tracking Total 7 | . 3 7 Tactical Retreats 1 | . 1 . Traps | -11 -10 -9 ------- Run | Yrd Mat Mat Traps Triggered 4 | . 1 3 Indirectly 2 | . . 2 Trap Hack Attempts . | . . . Triggered . | . . . Disarmed 6 | . . 6 Reprogrammed . | . . . Reused . | . . . Traps Extracted . | . . . Installed . | . . . Triggered . | . . . Machines | -11 -10 -9 ---------- Run | Yrd Mat Mat Machines Disabled 14 | . 3 11 Max in Single Turn 2 | . 1 2 Machines Repaired . | . . . Machines Dismantled . | . . . Machines Sabotaged . | . . . Overloaded Fab Kills . | . . . Hacking | -11 -10 -9 --------- Run | Yrd Mat Mat Machines Accessed 15 | . 8 7 Terminals 11 | . 6 5 Fabricators . | . . . Repair Stations . | . . . Recycling Units 3 | . 2 1 Scanalyzers 1 | . . 1 Garrison Access . | . . . Total Hacks 45 | . 23 22 Successful 27 | . 14 13 Failed 18 | . 9 9 Catastrophic 1 | . . 1 Database Lockouts . | . . . Manual 1 | . 1 . Terminals 31 | . 16 15 Fabricators . | . . . Repair Stations . | . . . Recycling Units 9 | . 7 2 Scanalyzers 5 | . . 5 Garrison Access . | . . . Terminal Hacks 18 | . 11 7 Prototype ID Bank 5 | . 2 3 Emergency Access Points 2 | . 1 1 Scanalyzer Index 1 | . 1 . Locate Traps 3 | . 2 1 Disarm Traps 1 | . . 1 Dispatch Records 1 | . 1 . Hauler Manifests 2 | . 1 1 Zone Layout 3 | . 3 . Fabricator Hacks . | . . . Repair Station Hacks . | . . . Recycling Unit Hacks 4 | . 3 1 Report Inventory 3 | . 2 1 Retrieve Components 1 | . 1 . Scanalyzer 5 | . . 5 Insert Component 3 | . . 3 Analyze 2 | . . 2 Garrison Access Hacks . | . . . Unauthorized Hacks . | . . . Terminals . | . . . Fabricators . | . . . Repair Stations . | . . . Recycling Units . | . . . Scanalyzers . | . . . Garrison Access . | . . . Data Cores Recovered . | . . . Used . | . . . Hacking Detections 11 | . 6 5 Full Trace Events 6 | . 3 3 Feedback Events 1 | . 1 . Corruption 1 | . 1 . Feedback Blocked . | . . . Robot Schematics Acquired . | . . . Robots Built . | . . . Authchips . | . . . Time . | . . . Total Robot Build Rating . | . . . Part Schematics Acquired 2 | . . 2 Parts Built . | . . . Authchips . | . . . Time . | . . . Total Part Build Rating . | . . . Parts Repaired . | . . . Time . | . . . Parts Recycled . | . . . Recycled Matter . | . . . Retrieved Matter . | . . . Retrieved Components 2 | . 2 . Parts Scanalyzed 2 | . . 2 Part Schematics Acquired 2 | . . 2 Parts Damaged . | . . . Bothacking | -11 -10 -9 ------------ Run | Yrd Mat Mat Used RIF Installer . | . . . Robots Hacked 4 | . . 4 Non-combat 3 | . . 3 Combat 1 | . . 1 Robot Hacks Applied 5 | . . 5 parse_system 1 | . . 1 no_distress 2 | . . 2 check_alert 2 | . . 2 Relay Couplers Released . | . . . Fabnet Peak Effective % . | . . . Robots Rewired . | . . . Allies Hacked . | . . . Hacks Repelled . | . . . Allies | -11 -10 -9 -------- Run | Yrd Mat Mat Total Allies . | . . . Largest Group . | . . . Highest-Rated Group . | . . . Highest-Rated Ally . | . . . Total Orders . | . . . Ally Attacks . | . . . Total Damage . | . . . Kills . | . . . Allies Corrupted . | . . . Allies Melted . | . . . Intel | -11 -10 -9 ------- Run | Yrd Mat Mat Robot Analysis Total . | . . . Derelict Logs Recovered . | . . . Drone Launches . | . . . Drone Recoveries . | . . . Exploration | -11 -10 -9 ------------- Run | Yrd Mat Mat Turns Passed 1573 | 64 764 745 Spaces Moved 1358 | 47 680 631 Core 53 | 6 . 47 Treads . | . . . Legs . | . . . Wheels 1057 | 41 680 336 Hover . | . . . Flight 248 | . . 248 Fastest Speed 37 | 50 90 37 Average Speed 88 | 84 96 80 Slowest Speed 250 | 90 100 250 Overloaded Moves . | . . . Propulsion Burnouts . | . . . Robots Hopped 1 | . . 1 Cave-ins Triggered . | . . . Exploration Rate (%) 53 | 4 96 59 Regions Visited 2 Branch Regions . Pre-discovered Areas . | . . . Known Exits Taken . | . . . Unknown Exits Taken 2 | 1 1 . Scrap Searched . | . . . Spaces Dug . | . . . Terrain Destroyed 190 | . 101 89 Melee . | . . . Projectile . | . . . AOE 190 | . 101 89 Terrain Rammed . | . . . Walls Destroyed . | . . . Machines Disabled . | . . . Actions | -11 -10 -9 --------- Run | Yrd Mat Mat Total 1578 | 65 742 771 Wait 50 | 1 11 38 Move 1354 | 46 679 629 Hop 1 | . . 1 Pick Up 17 | 7 7 3 Fast Attach 18 | 4 2 12 Attach 10 | 3 1 6 Detach 1 | . . 1 Swap 16 | . 6 10 Drop 10 | . 5 5 Fire 94 | 4 31 59 Melee 7 | . . 7 Ram . | . . . Kick . | . . . Crush . | . . . Escape Stasis . | . . . Rewire . | . . . Trap . | . . . Miscellaneous . | . . . Route ------- -11/Scrapyard -10/Materials (discovered 5 exits: *Mat x3 / [*Min x2]) -9/Materials (discovered 1 exit: *Mat) History --------- Turn | Location | Event 15 | -11/Scrapyard | Discovered new exit (range 16) 65 | -11/Scrapyard | Entered Materials 188 | -10/Materials | Discovered new exit (range 13) 296 | -10/Materials | Discovered new exit (range 16) 305 | -10/Materials | Build established: Mutant 470 | -10/Materials | Discovered new exit (range 15) 631 | -10/Materials | Discovered new exit (range 15) 659 | -10/Materials | Discovered new exit (range 14) 829 | -10/Materials | Entered another Materials area 829 | -9/Materials | Evolved 2 slots: Utility x2 1271 | -9/Materials | Lost 3 parts (1n1u1w) 1288 | -9/Materials | Core integrity fell below 50% 1347 | -9/Materials | Lost 6 parts (1p2n3w) 1381 | -9/Materials | Core integrity fell below 20% 1529 | -9/Materials | Discovered new exit (range 10) 1544 | -9/Materials | System corruption reached 10% 1544 | -9/Materials | Identified exit to Materials 1574 | -9/Materials | Destroyed by Y-45 Defender with Heavy Assault Rifle Last Messages --------------- Ready to analyze. >>Scanalyze Scanning: Lgt. Treads... Schematic downloaded. >>Insert(Datajack) Scanning Datajack... Ready to analyze. 01553_ ALERT: Suspicious activity at Scanalyzer M002. Dispatching Investigation squad. 01558_ Connecting with Recycling Unit... >>Recycling(Report) Matter reserves: 0 Inventory: Empty 01561_ System corrupted: Energy discharge (-63). 01567_ Atomic Centrifuge disabled. 01567_ Door malfunctions. 01571_ Blade Trap short circuited. 01571_ Massive razor-sharp blades shoot up from within the floor. 01574_ EMP Blaster destroyed. Map ----- +----------------------------------------------------+ | | | | | | | | | | | | | | | | | | | | | ???????????????????????????????????????????????? | | ???????????????????????????????????????????????? | | ????????????????????????????????####???????????? | | ??????????????????????????# ?? #???????????? | | ??????????????????????????# """" #???????????? | | ??????????????????????????# """" #?????######? | | ??????????????????????????# """" #?????# ? | | ??????????????????????????# #?????# "T | | ??????????????????????????# "" #?????# | | ??????????????????????????# """ #?????# !! | | ??????????????##########??# S" #????# !! | | ??????????????# #??# #????## !! ?? | | ??????????????#""" "" #??#####+####?????###???# | | ??????????????#""" Y" #????# ############## | | ??????????????#""" "" ###### g | | ??????????????# @ | | ??????????????# ### u | | ??????????????# #?# ############## | | ????????#?????# #?# #????????????# | | ???????## ???# Y #?# a#????????????? | | ???????# ##/########## #####????????? | | ???????# ####?????? | | ???????+ #?????? | | ???????# ###???? | | ???????#! a ##+######### """ ? | | ???????## #???????????# """ #####?? | | ????????# ????????????# """ #?????? | | ????????# ?????????????# ###### #??#### | | ???????? ??????????+ ?????# #### | | ???????## ???????????#####+#?????# ## | | ????????#???????????????? ???????# # ! | | ???????????????????????? ????????# *% % ! | | ??????????????????????? ?????????# ###[ | | ??????????????????????#??????????# #?### ]% | | ?????????????????????????????????# ####??# | | ?????????????????????????????????# #?????# | | ?????????????????????????????????# #?????# # | | ?????????????????????????????????# #?????## | | ?????????????????????????????????# #??????# | | ?????????????????????????????????# # # | +----------------------------------------------------+ Best States ------------- Heat Dissipation 28 Energy Generation 14 Energy Capacity 280 Matter Stores 300 Matter Capacity 300 Sight Range 16 Robot Scan Range 14 Terrain Scan Density 10 Evasion (%) 62 Targeting Accuracy 13 Item Schematics ----------------- Grenade Launcher | -9/Materials | Scanalyzed Lgt. Treads | -9/Materials | Scanalyzed Robot Schematics ------------------ None Fabricated ------------ Nothing Alien Tech Used ----------------- None Achievements -------------- None Challenges ------------ None Game ------ Seed DisposableTeslaActivator Manual? 0 Play Time 00:26:19 Cumulative 8.8 hours Start 2024.07.04 @ 17:42:47 End 2024.07.04 @ 18:44:17 Sessions 1 Manual Loads 0 Difficulty Rogue Special Mode None Game No. 16 Rogue 16 Adventurer 0 Explorer 0 Win Type - Total 0 Types 0/0/0/0/0/0/0/0/0 Lore% 10 Gallery% 13 Achievement% 16 Wizard Run 0 Options --------- Layout 1 ASCII 1 Keyboard 0 Movement Numpad Keybinds 0 Fullscreen 1 Font 24/Proggy Map View 50x35 Zoom Use 0% Tactical HUD 1 Map Filters NONE Filters NONE Steam 0 RUN: 2bdb86a6-0df8-45bb-884f-db34669fd91e